[Event "*** Titled Tuesday Blitz"]
[Site "Chess.com"]
[Date "2020.02.04"]
[Round "5"]
[White "LiemLe"]
[Black "Grandelicious"]
[Result "0-1"]
[WhiteElo "2958"]
[BlackElo "2712"]
[TimeControl "180+2"]
[EndTime "14:06:55 PST"]
[Termination "Grandelicious won by resignation"]

1. e4 {[%clk 0:03:01.9]} 1... c5 {[%clk 0:02:59.8]} 2. Nf3 {[%clk 0:03:03.1]}
2... e6 {[%clk 0:03:01.3]} 3. d4 {[%clk 0:03:04.7]} 3... cxd4 {[%clk 0:03:03.2]}
4. Nxd4 {[%clk 0:03:06.2]} 4... a6 {[%clk 0:03:05.1]} 5. c4 {[%clk 0:03:07.4]}
5... Nf6 {[%clk 0:03:06.4]} 6. Nc3 {[%clk 0:03:08.9]} 6... Qc7 {[%clk 0:03:08]}
7. Be2 {[%clk 0:03:10.3]} 7... Bb4 {[%clk 0:03:04.8]} 8. Qd3 {[%clk 0:03:11.5]}
8... b6 {[%clk 0:03:05.1]} 9. a3 {[%clk 0:03:00.6]} 9... Bxc3+ {[%clk
0:02:51.5]} 10. Qxc3 {[%clk 0:03:02.5]} 10... Nxe4 {[%clk 0:02:52.8]} 11. Nb5
{[%clk 0:02:51.2]} 11... axb5 {[%clk 0:02:14.8]} 12. Qxg7 {[%clk 0:02:51.7]}
12... Rf8 {[%clk 0:02:15.4]} 13. Bh6 {[%clk 0:02:52.6]} 13... Qc5 {[%clk
0:02:14]} 14. f3 {[%clk 0:02:51.7]} 14... bxc4 {[%clk 0:00:57.2]} 15. fxe4
{[%clk 0:02:52.2]} 15... b5 {[%clk 0:00:50]} 16. Rf1 {[%clk 0:02:27.4]} 16...
Nc6 {[%clk 0:00:23.2]} 17. Rd1 {[%clk 0:01:45.7]} 17... Ba6 {[%clk 0:00:14.2]}
18. Rxf7 {[%clk 0:01:18.2]} 18... Rxf7 {[%clk 0:00:10]} 19. Qg8+ {[%clk
0:01:19.3]} 19... Rf8 {[%clk 0:00:10.3]} 20. Bh5+ {[%clk 0:01:19.8]} 20... Kd8
{[%clk 0:00:11.7]} 21. Bxf8 {[%clk 0:01:14.3]} 21... Qe3+ {[%clk 0:00:12.5]} 22.
Kf1 {[%clk 0:01:14.6]} 22... Kc7 {[%clk 0:00:14]} 23. Bd6+ {[%clk 0:01:07.3]}
23... Kb7 {[%clk 0:00:15.1]} 24. Qxh7 {[%clk 0:01:08.9]} 24... Rd8 {[%clk
0:00:13.1]} 25. Bg3 {[%clk 0:01:00]} 25... b4 {[%clk 0:00:14.1]} 26. Bf2 {[%clk
0:00:52.5]} 26... c3+ {[%clk 0:00:15]} 27. Kg1 {[%clk 0:00:53.8]} 27... Qf4
{[%clk 0:00:10]} 28. Rxd7+ {[%clk 0:00:45.2]} 28... Rxd7 {[%clk 0:00:11.9]} 29.
Qxd7+ {[%clk 0:00:46.7]} 29... Qc7 {[%clk 0:00:13.3]} 30. Qxe6 {[%clk
0:00:44.4]} 30... cxb2 {[%clk 0:00:13.9]} 31. Qb3 {[%clk 0:00:45.2]} 31... Qe5
{[%clk 0:00:14]} 32. Bg3 {[%clk 0:00:18.9]} 32... Qxh5 {[%clk 0:00:10.7]} 33.
Qxb2 {[%clk 0:00:17.4]} 33... Qd1+ {[%clk 0:00:11.6]} 34. Kf2 {[%clk 0:00:18.8]}
34... Qf1+ {[%clk 0:00:12.4]} 35. Ke3 {[%clk 0:00:20.3]} 35... Qd3+ {[%clk
0:00:13.2]} 36. Kf4 {[%clk 0:00:21.7]} 36... Qxa3 {[%clk 0:00:15.1]} 37. Qg7+
{[%clk 0:00:22.8]} 37... Kb6 {[%clk 0:00:15.8]} 38. Bf2+ {[%clk 0:00:24]} 38...
Kb5 {[%clk 0:00:16]} 39. Qg5+ {[%clk 0:00:20.5]} 39... Ka4 {[%clk 0:00:17.2]}
40. Qd5 {[%clk 0:00:21.5]} 40... Bb5 {[%clk 0:00:16.3]} 41. h4 {[%clk
0:00:21.3]} 41... Qc3 {[%clk 0:00:15.6]} 42. Qa2+ {[%clk 0:00:20.5]} 42... Qa3
{[%clk 0:00:16.1]} 43. Qg8 {[%clk 0:00:20.7]} 43... Qc1+ {[%clk 0:00:14.5]} 44.
Be3 {[%clk 0:00:20.5]} 44... Qf1+ {[%clk 0:00:15]} 45. Kg3 {[%clk 0:00:21.9]}
45... b3 {[%clk 0:00:16.2]} 46. Qa8+ {[%clk 0:00:21.9]} 46... Kb4 {[%clk
0:00:16.9]} 47. Qh8 {[%clk 0:00:20.1]} 47... Qe1+ {[%clk 0:00:18]} 48. Bf2
{[%clk 0:00:21]} 48... Qc3+ {[%clk 0:00:19.3]} 49. Qxc3+ {[%clk 0:00:21.3]}
49... Kxc3 {[%clk 0:00:21.2]} 50. h5 {[%clk 0:00:19.8]} 50... b2 {[%clk
0:00:22.7]} 51. h6 {[%clk 0:00:21.4]} 51... Ne5 {[%clk 0:00:22.9]} 52. h7 {[%clk
0:00:23.3]} 52... Ng6 {[%clk 0:00:22.6]} 53. Kg4 {[%clk 0:00:18.6]} 53... b1=Q
{[%clk 0:00:23.7]} 54. Kf5 {[%clk 0:00:20.5]} 54... Be8 {[%clk 0:00:23.4]} 0-1

[Event "*** Titled Tuesday Blitz"]
[Site "Chess.com"]
[Date "2020.02.04"]
[Round "5"]
[White "Philosopherrr"]
[Black "Gusarov91"]
[Result "1-0"]
[WhiteElo "2460"]
[BlackElo "2608"]
[TimeControl "180+2"]
[EndTime "14:06:59 PST"]
[Termination "Philosopherrr won by resignation"]

1. e4 {[%clk 0:03:01.9]} 1... c5 {[%clk 0:03:00.7]} 2. Nf3 {[%clk 0:03:01.4]}
2... d6 {[%clk 0:02:59.3]} 3. Bb5+ {[%clk 0:02:59.4]} 3... Bd7 {[%clk
0:03:00.3]} 4. Bd3 {[%clk 0:03:00.1]} 4... Nc6 {[%clk 0:02:58.1]} 5. c3 {[%clk
0:03:01.4]} 5... Bg4 {[%clk 0:02:57]} 6. h3 {[%clk 0:03:00.6]} 6... Bxf3 {[%clk
0:02:56.6]} 7. Qxf3 {[%clk 0:03:01.6]} 7... Nf6 {[%clk 0:02:56.5]} 8. Qe2 {[%clk
0:03:00.9]} 8... g6 {[%clk 0:02:56.4]} 9. O-O {[%clk 0:02:46.2]} 9... Bg7 {[%clk
0:02:57.3]} 10. Bb5 {[%clk 0:02:26.2]} 10... O-O {[%clk 0:02:57.1]} 11. d3
{[%clk 0:02:26]} 11... Qc7 {[%clk 0:02:53.1]} 12. Nd2 {[%clk 0:02:26.2]} 12...
a6 {[%clk 0:02:54]} 13. Ba4 {[%clk 0:02:26.8]} 13... b5 {[%clk 0:02:55.1]} 14.
Bc2 {[%clk 0:02:27.8]} 14... b4 {[%clk 0:02:48.4]} 15. Nf3 {[%clk 0:02:22.6]}
15... Nd7 {[%clk 0:02:47.9]} 16. Bd2 {[%clk 0:02:18.6]} 16... a5 {[%clk
0:02:49.2]} 17. Rfc1 {[%clk 0:02:12.2]} 17... Nde5 {[%clk 0:02:47.7]} 18. Nxe5
{[%clk 0:02:11.3]} 18... Bxe5 {[%clk 0:02:48.2]} 19. d4 {[%clk 0:02:12.4]} 19...
cxd4 {[%clk 0:02:48.6]} 20. cxb4 {[%clk 0:02:13]} 20... Nxb4 {[%clk 0:02:38.6]}
21. Bb3 {[%clk 0:01:58.4]} 21... Qb6 {[%clk 0:02:36.4]} 22. Bh6 {[%clk
0:01:54.6]} 22... Bg7 {[%clk 0:02:22.1]} 23. Bg5 {[%clk 0:01:52.5]} 23... e6
{[%clk 0:02:16.7]} 24. Qc4 {[%clk 0:01:45.5]} 24... a4 {[%clk 0:01:57.8]} 25.
Bd1 {[%clk 0:01:40.4]} 25... d5 {[%clk 0:01:59.1]} 26. exd5 {[%clk 0:01:40.5]}
26... Nxd5 {[%clk 0:02:00.3]} 27. Rab1 {[%clk 0:01:34.5]} 27... Qa6 {[%clk
0:01:48.9]} 28. Bd2 {[%clk 0:01:24]} 28... Qa7 {[%clk 0:01:36.9]} 29. Bf3 {[%clk
0:01:21.1]} 29... Rfd8 {[%clk 0:01:36.7]} 30. Bg5 {[%clk 0:01:21.2]} 30... f6
{[%clk 0:01:26.3]} 31. Bd2 {[%clk 0:01:17.1]} 31... Kh8 {[%clk 0:01:27.1]} 32.
Re1 {[%clk 0:01:10.7]} 32... Rac8 {[%clk 0:01:26.7]} 33. Qb5 {[%clk 0:01:11.6]}
33... Rc5 {[%clk 0:01:19.3]} 34. Qd3 {[%clk 0:01:11.8]} 34... e5 {[%clk
0:01:19.3]} 35. Rbc1 {[%clk 0:01:13.2]} 35... Rxc1 {[%clk 0:01:04.3]} 36. Rxc1
{[%clk 0:01:13.6]} 36... Qd7 {[%clk 0:01:03.2]} 37. Rc5 {[%clk 0:01:08.7]} 37...
Ne7 {[%clk 0:01:00.3]} 38. Qc4 {[%clk 0:01:07.6]} 38... Qd6 {[%clk 0:00:50.8]}
39. Bb4 {[%clk 0:01:04.9]} 39... d3 {[%clk 0:00:45.4]} 40. Rd5 {[%clk
0:00:54.3]} 40... Nxd5 {[%clk 0:00:20.6]} 41. Bxd6 {[%clk 0:00:54.4]} 41... Nf4
{[%clk 0:00:21]} 42. g3 {[%clk 0:00:50.8]} 42... Ne2+ {[%clk 0:00:18.9]} 43. Kg2
{[%clk 0:00:42.7]} 43... Nd4 {[%clk 0:00:19.8]} 44. Be7 {[%clk 0:00:40.9]} 44...
Re8 {[%clk 0:00:19.1]} 45. Qf7 {[%clk 0:00:39.9]} 45... Rg8 {[%clk 0:00:18]} 46.
Bd5 {[%clk 0:00:37.4]} 46... Rb8 {[%clk 0:00:15.2]} 47. Bxf6 {[%clk 0:00:38.2]}
47... Nf5 {[%clk 0:00:16.9]} 48. g4 {[%clk 0:00:29.7]} 48... Bxf6 {[%clk
0:00:15.7]} 49. Qxf6+ {[%clk 0:00:30.2]} 49... Ng7 {[%clk 0:00:16.9]} 50. Qxe5
{[%clk 0:00:31.4]} 50... Rd8 {[%clk 0:00:18.1]} 51. Bf3 {[%clk 0:00:28.4]} 51...
d2 {[%clk 0:00:19]} 52. Bd1 {[%clk 0:00:29.6]} 52... Re8 {[%clk 0:00:20.2]} 53.
Qd4 {[%clk 0:00:29.8]} 53... Kg8 {[%clk 0:00:20.6]} 54. Qxd2 {[%clk 0:00:30.1]}
54... Ne6 {[%clk 0:00:22.5]} 55. Bxa4 {[%clk 0:00:29.4]} 55... Re7 {[%clk
0:00:24.4]} 56. Bb3 {[%clk 0:00:30.5]} 56... Kg7 {[%clk 0:00:26]} 57. Bxe6
{[%clk 0:00:31.6]} 57... Rxe6 {[%clk 0:00:27.5]} 58. Qc3+ {[%clk 0:00:33.2]} 1-0

[Event "*** Titled Tuesday Blitz"]
[Site "Chess.com"]
[Date "2020.02.04"]
[Round "5"]
[White "ural58"]
[Black "Astaneh"]
[Result "1-0"]
[WhiteElo "2365"]
[BlackElo "2524"]
[TimeControl "180+2"]
[EndTime "14:07:00 PST"]
[Termination "ural58 won by resignation"]

1. e4 {[%clk 0:03:01.5]} 1... c5 {[%clk 0:02:59.3]} 2. b3 {[%clk 0:03:01.9]}
2... Nc6 {[%clk 0:02:59.2]} 3. Bb2 {[%clk 0:03:02.8]} 3... e5 {[%clk 0:03:00]}
4. f4 {[%clk 0:03:03.5]} 4... d6 {[%clk 0:02:59.1]} 5. Qf3 {[%clk 0:03:04.3]}
5... Nd4 {[%clk 0:02:59.6]} 6. Qd3 {[%clk 0:03:04.7]} 6... f5 {[%clk 0:02:53.6]}
7. Nc3 {[%clk 0:02:58.3]} 7... Nf6 {[%clk 0:02:52.1]} 8. fxe5 {[%clk 0:02:30.2]}
8... dxe5 {[%clk 0:02:54]} 9. O-O-O {[%clk 0:02:27.6]} 9... a6 {[%clk
0:02:26.1]} 10. Qg3 {[%clk 0:02:11.9]} 10... f4 {[%clk 0:02:26]} 11. Qg5 {[%clk
0:02:07.9]} 11... Qd6 {[%clk 0:02:18]} 12. Nf3 {[%clk 0:02:06.8]} 12... Bg4
{[%clk 0:02:09.2]} 13. Qxe5+ {[%clk 0:01:28]} 13... Qxe5 {[%clk 0:02:09.2]} 14.
Nxe5 {[%clk 0:01:29.9]} 14... Bxd1 {[%clk 0:02:10.9]} 15. Kxd1 {[%clk
0:01:30.9]} 15... Rd8 {[%clk 0:01:58.8]} 16. Nf3 {[%clk 0:01:27.7]} 16... Ng4
{[%clk 0:01:58.3]} 17. Rg1 {[%clk 0:01:22.5]} 17... Ne3+ {[%clk 0:01:56.6]} 18.
Kc1 {[%clk 0:01:16.3]} 18... Nexc2 {[%clk 0:01:53.2]} 19. Bc4 {[%clk 0:01:02.4]}
19... b5 {[%clk 0:01:52.2]} 20. Bd5 {[%clk 0:00:53.8]} 20... Nb4 {[%clk
0:01:52.5]} 21. Kd1 {[%clk 0:00:19.8]} 21... g6 {[%clk 0:01:35.8]} 22. Nxd4
{[%clk 0:00:18.8]} 22... cxd4 {[%clk 0:01:36.4]} 23. Ne2 {[%clk 0:00:17.9]}
23... Nxd5 {[%clk 0:01:36.9]} 24. exd5 {[%clk 0:00:19]} 24... Bg7 {[%clk
0:01:37.4]} 25. Nxf4 {[%clk 0:00:19.5]} 25... Kf7 {[%clk 0:01:31.2]} 26. Rf1
{[%clk 0:00:17.6]} 26... Kg8 {[%clk 0:01:31.2]} 27. Ke2 {[%clk 0:00:10.9]} 27...
d3+ {[%clk 0:01:22.7]} 28. Nxd3 {[%clk 0:00:11.7]} 28... Bxb2 {[%clk 0:01:24.6]}
29. Nxb2 {[%clk 0:00:13.6]} 29... Rxd5 {[%clk 0:01:25.9]} 30. Nd3 {[%clk
0:00:13.7]} 30... Kg7 {[%clk 0:01:26.1]} 31. Nf4 {[%clk 0:00:14.7]} 31... Re8+
{[%clk 0:01:27.3]} 32. Kd1 {[%clk 0:00:15.6]} 32... Rf5 {[%clk 0:01:28.3]} 33.
g4 {[%clk 0:00:14.8]} 33... Rf7 {[%clk 0:01:29.1]} 34. Rf2 {[%clk 0:00:13.6]}
34... Ref8 {[%clk 0:01:30.2]} 35. Ne6+ {[%clk 0:00:14.7]} 35... Kg8 {[%clk
0:01:31.3]} 36. Re2 {[%clk 0:00:15.8]} 36... Rf1+ {[%clk 0:01:31.1]} 37. Kc2
{[%clk 0:00:15.6]} 37... Re8 {[%clk 0:01:32.4]} 38. d4 {[%clk 0:00:16.3]} 38...
Rf7 {[%clk 0:01:27.5]} 39. d5 {[%clk 0:00:16.7]} 39... Rd7 {[%clk 0:01:28.9]}
40. Re5 {[%clk 0:00:17.7]} 40... Rf7 {[%clk 0:01:20.5]} 41. Kc3 {[%clk
0:00:18.4]} 41... Rc8+ {[%clk 0:00:53.3]} 42. Kb4 {[%clk 0:00:19.4]} 42... Rd7
{[%clk 0:00:51.3]} 43. Ka5 {[%clk 0:00:19]} 43... Rd6 {[%clk 0:00:52]} 44. h4
{[%clk 0:00:15.4]} 44... h6 {[%clk 0:00:38.4]} 45. g5 {[%clk 0:00:12.8]} 45...
hxg5 {[%clk 0:00:40.3]} 46. Nxg5 {[%clk 0:00:13]} 46... Rcd8 {[%clk 0:00:22.7]}
47. Ne4 {[%clk 0:00:13.5]} 47... Kf7 {[%clk 0:00:19.9]} 48. Nxd6+ {[%clk
0:00:14.2]} 48... Rxd6 {[%clk 0:00:21.8]} 49. Rg5 {[%clk 0:00:14.9]} 49... Kf6
{[%clk 0:00:21]} 50. a3 {[%clk 0:00:14.8]} 50... Ke7 {[%clk 0:00:21.5]} 51. Re5+
{[%clk 0:00:14.6]} 51... Kf6 {[%clk 0:00:21.7]} 52. Re6+ {[%clk 0:00:15.9]}
52... Rxe6 {[%clk 0:00:20.9]} 53. dxe6 {[%clk 0:00:17.8]} 53... Kxe6 {[%clk
0:00:22.7]} 54. Kxa6 {[%clk 0:00:19.1]} 1-0

[Event "*** Titled Tuesday Blitz"]
[Site "Chess.com"]
[Date "2020.02.04"]
[Round "5"]
[White "PowerThinking2650"]
[Black "Keaton87"]
[Result "1-0"]
[WhiteElo "2408"]
[BlackElo "2547"]
[TimeControl "180+2"]
[EndTime "14:07:02 PST"]
[Termination "PowerThinking2650 won by resignation"]

1. e4 {[%clk 0:03:00.5]} 1... c5 {[%clk 0:03:01.1]} 2. Nf3 {[%clk 0:03:01]} 2...
d6 {[%clk 0:03:02.5]} 3. Nc3 {[%clk 0:03:01.8]} 3... Nf6 {[%clk 0:03:03.2]} 4.
g3 {[%clk 0:03:03]} 4... g6 {[%clk 0:03:02.2]} 5. Bg2 {[%clk 0:03:03.7]} 5...
Bg7 {[%clk 0:03:03.7]} 6. O-O {[%clk 0:03:05.1]} 6... O-O {[%clk 0:03:04.9]} 7.
d3 {[%clk 0:03:06.5]} 7... Nc6 {[%clk 0:03:05.7]} 8. h3 {[%clk 0:03:05.4]} 8...
Rb8 {[%clk 0:03:05.9]} 9. a4 {[%clk 0:03:06.4]} 9... Nb4 {[%clk 0:03:04]} 10.
Be3 {[%clk 0:03:01.1]} 10... a6 {[%clk 0:03:05]} 11. Qd2 {[%clk 0:03:00.9]}
11... b5 {[%clk 0:03:05.6]} 12. axb5 {[%clk 0:03:01.7]} 12... axb5 {[%clk
0:03:06.9]} 13. Rac1 {[%clk 0:02:53.1]} 13... Qc7 {[%clk 0:02:42.8]} 14. Bh6
{[%clk 0:02:50.2]} 14... d5 {[%clk 0:02:23.8]} 15. Bxg7 {[%clk 0:02:46]} 15...
Kxg7 {[%clk 0:02:25]} 16. e5 {[%clk 0:02:41.6]} 16... Nd7 {[%clk 0:02:26]} 17.
Rce1 {[%clk 0:02:35]} 17... Nb6 {[%clk 0:02:26.6]} 18. Nxb5 {[%clk 0:02:26.9]}
18... Qd7 {[%clk 0:02:22]} 19. Nc3 {[%clk 0:02:20.7]} 19... Bb7 {[%clk
0:02:21.3]} 20. e6 {[%clk 0:02:15.4]} 20... fxe6 {[%clk 0:02:19.3]} 21. Ng5
{[%clk 0:02:15.9]} 21... Rf6 {[%clk 0:02:20]} 22. h4 {[%clk 0:02:06.2]} 22... h6
{[%clk 0:01:28.9]} 23. Nf3 {[%clk 0:02:04.8]} 23... Nc6 {[%clk 0:01:29]} 24. Nh2
{[%clk 0:01:32.8]} 24... h5 {[%clk 0:01:22.8]} 25. f4 {[%clk 0:01:29.2]} 25...
Nd4 {[%clk 0:01:19.8]} 26. Ne2 {[%clk 0:01:11.6]} 26... Nf5 {[%clk 0:01:20.9]}
27. Nf3 {[%clk 0:01:08.2]} 27... Qc7 {[%clk 0:01:18.9]} 28. c3 {[%clk 0:00:48]}
28... d4 {[%clk 0:01:18.1]} 29. cxd4 {[%clk 0:00:40.3]} 29... cxd4 {[%clk
0:01:19.3]} 30. Nexd4 {[%clk 0:00:35.4]} 30... Nxg3 {[%clk 0:01:15.7]} 31. Nxe6+
{[%clk 0:00:29.8]} 31... Rxe6 {[%clk 0:01:16.4]} 32. Rxe6 {[%clk 0:00:30.8]}
32... Nxf1 {[%clk 0:01:17.4]} 33. Kxf1 {[%clk 0:00:27.1]} 33... Nd5 {[%clk
0:01:07.1]} 34. Ng5 {[%clk 0:00:18.9]} 34... Rf8 {[%clk 0:01:05.1]} 35. Kg1
{[%clk 0:00:13.2]} 35... Nxf4 {[%clk 0:00:31.9]} 36. Bxb7 {[%clk 0:00:12]} 36...
Qxb7 {[%clk 0:00:27.9]} 37. Re4 {[%clk 0:00:10.1]} 37... Nd5 {[%clk 0:00:16.3]}
38. Ne6+ {[%clk 0:00:10.2]} 38... Kg8 {[%clk 0:00:17.1]} 39. Nxf8 {[%clk
0:00:10.5]} 39... Kxf8 {[%clk 0:00:18.7]} 40. Qh6+ {[%clk 0:00:10.1]} 40... Kf7
{[%clk 0:00:18.1]} 41. Qh7+ {[%clk 0:00:10.2]} 41... Kf6 {[%clk 0:00:19.6]} 42.
Qh8+ {[%clk 0:00:10.9]} 42... Kf7 {[%clk 0:00:20]} 43. Qe5 {[%clk 0:00:11.3]}
43... Qd7 {[%clk 0:00:20]} 44. Rd4 {[%clk 0:00:10.7]} 44... e6 {[%clk
0:00:20.7]} 45. b4 {[%clk 0:00:09]} 45... Qa4 {[%clk 0:00:15.7]} 46. Rxd5 {[%clk
0:00:06.6]} 46... Qd1+ {[%clk 0:00:16.5]} 47. Kf2 {[%clk 0:00:07.2]} 47... Qd2+
{[%clk 0:00:15.3]} 48. Qe2 {[%clk 0:00:07.4]} 48... Qxe2+ {[%clk 0:00:10.6]} 49.
Kxe2 {[%clk 0:00:09.3]} 49... exd5 {[%clk 0:00:11.8]} 50. Ke3 {[%clk 0:00:09.5]}
50... Ke6 {[%clk 0:00:12.4]} 51. Kf4 {[%clk 0:00:10]} 51... Kd6 {[%clk
0:00:09.5]} 52. Kg5 {[%clk 0:00:09.7]} 1-0

[Event "*** Titled Tuesday Blitz"]
[Site "Chess.com"]
[Date "2020.02.04"]
[Round "5"]
[White "JozefKneht"]
[Black "Playgood28"]
[Result "1/2-1/2"]
[WhiteElo "2431"]
[BlackElo "2278"]
[TimeControl "180+2"]
[EndTime "14:07:06 PST"]
[Termination "Game drawn by repetition"]

1. d4 {[%clk 0:03:01.9]} 1... f5 {[%clk 0:02:59.3]} 2. Bf4 {[%clk 0:03:03]} 2...
Nf6 {[%clk 0:02:58.1]} 3. e3 {[%clk 0:03:04.4]} 3... d6 {[%clk 0:02:55.7]} 4. h3
{[%clk 0:03:04.8]} 4... g6 {[%clk 0:02:56.3]} 5. Nf3 {[%clk 0:03:06.4]} 5... Bg7
{[%clk 0:02:57.2]} 6. Be2 {[%clk 0:03:07.9]} 6... O-O {[%clk 0:02:57.8]} 7. O-O
{[%clk 0:03:08.5]} 7... Nc6 {[%clk 0:02:58.8]} 8. c4 {[%clk 0:03:09.6]} 8... Qe8
{[%clk 0:02:52.4]} 9. Nc3 {[%clk 0:03:09.8]} 9... e5 {[%clk 0:02:52]} 10. Bh2
{[%clk 0:03:10.6]} 10... h6 {[%clk 0:02:38.5]} 11. Rb1 {[%clk 0:03:10.8]} 11...
a5 {[%clk 0:02:37.8]} 12. a3 {[%clk 0:03:10.4]} 12... g5 {[%clk 0:02:38.9]} 13.
b4 {[%clk 0:03:10.7]} 13... axb4 {[%clk 0:02:39.7]} 14. axb4 {[%clk 0:03:11.4]}
14... f4 {[%clk 0:02:37.5]} 15. c5 {[%clk 0:03:03.8]} 15... Bf5 {[%clk
0:01:46.4]} 16. b5 {[%clk 0:02:46.9]} 16... Na5 {[%clk 0:01:34]} 17. Ra1 {[%clk
0:02:40.7]} 17... b6 {[%clk 0:01:28.6]} 18. cxd6 {[%clk 0:02:30.5]} 18... cxd6
{[%clk 0:01:28.5]} 19. dxe5 {[%clk 0:02:32]} 19... dxe5 {[%clk 0:01:29.4]} 20.
exf4 {[%clk 0:02:33.5]} 20... exf4 {[%clk 0:01:28.6]} 21. Re1 {[%clk 0:02:29.6]}
21... Kh8 {[%clk 0:01:29.2]} 22. Bd3 {[%clk 0:02:22.2]} 22... Qg6 {[%clk
0:01:30]} 23. Bxf5 {[%clk 0:02:22.2]} 23... Qxf5 {[%clk 0:01:30.6]} 24. Nd4
{[%clk 0:02:10.4]} 24... Qd7 {[%clk 0:01:29]} 25. Ne6 {[%clk 0:02:00.7]} 25...
Qxd1 {[%clk 0:01:29]} 26. Raxd1 {[%clk 0:02:02.6]} 26... Rfe8 {[%clk 0:01:26.7]}
27. Nxg7 {[%clk 0:02:02.4]} 27... Kxg7 {[%clk 0:01:25.4]} 28. Kf1 {[%clk
0:01:58.6]} 28... Nb3 {[%clk 0:01:21.9]} 29. Rxe8 {[%clk 0:01:37.9]} 29... Rxe8
{[%clk 0:01:20.5]} 30. f3 {[%clk 0:01:17.4]} 30... Re3 {[%clk 0:01:12.5]} 31.
Nd5 {[%clk 0:01:04.5]} 31... Nxd5 {[%clk 0:01:03.7]} 32. Rxd5 {[%clk 0:01:06.4]}
32... Nc5 {[%clk 0:00:59.9]} 33. Bg1 {[%clk 0:01:03.6]} 33... Rc3 {[%clk
0:01:00.5]} 34. Bxc5 {[%clk 0:01:03.9]} 34... bxc5 {[%clk 0:01:00.6]} 35. b6
{[%clk 0:01:02.8]} 35... Rb3 {[%clk 0:01:00.8]} 36. Rd7+ {[%clk 0:00:49.8]}
36... Kg6 {[%clk 0:00:53.1]} 37. b7 {[%clk 0:00:45.8]} 37... Rb2 {[%clk
0:00:43]} 38. Rc7 {[%clk 0:00:44.5]} 38... c4 {[%clk 0:00:40]} 39. Rxc4 {[%clk
0:00:40.7]} 39... Rxb7 {[%clk 0:00:39.6]} 40. Rc6+ {[%clk 0:00:41.1]} 40... Kg7
{[%clk 0:00:39.6]} 41. Kf2 {[%clk 0:00:43]} 41... Rb2+ {[%clk 0:00:39.1]} 42.
Kf1 {[%clk 0:00:44.3]} 42... Rd2 {[%clk 0:00:39.1]} 43. Re6 {[%clk 0:00:44.5]}
43... Ra2 {[%clk 0:00:36.3]} 44. Re4 {[%clk 0:00:41.5]} 44... Rb2 {[%clk
0:00:36]} 45. h4 {[%clk 0:00:39.9]} 45... Kg6 {[%clk 0:00:36]} 46. hxg5 {[%clk
0:00:40.9]} 46... hxg5 {[%clk 0:00:36.1]} 47. Re6+ {[%clk 0:00:40.8]} 47... Kf5
{[%clk 0:00:36.5]} 48. Re8 {[%clk 0:00:38.7]} 48... Ra2 {[%clk 0:00:24.2]} 49.
Rf8+ {[%clk 0:00:39.2]} 49... Kg6 {[%clk 0:00:24.5]} 50. Rg8+ {[%clk 0:00:39.1]}
50... Kf6 {[%clk 0:00:24.2]} 51. Re8 {[%clk 0:00:37.9]} 51... Rb2 {[%clk
0:00:22.9]} 52. Re4 {[%clk 0:00:38.9]} 52... Ra2 {[%clk 0:00:22.5]} 53. Kg1
{[%clk 0:00:38.3]} 53... Kf5 {[%clk 0:00:23.1]} 54. Kf1 {[%clk 0:00:37.9]} 54...
Ra1+ {[%clk 0:00:22.8]} 55. Ke2 {[%clk 0:00:33.4]} 55... Ra2+ {[%clk 0:00:23.5]}
56. Kf1 {[%clk 0:00:34.5]} 56... Ra1+ {[%clk 0:00:24.3]} 57. Ke2 {[%clk
0:00:35.3]} 57... Ra2+ {[%clk 0:00:24.9]} 58. Kf1 {[%clk 0:00:36.4]} 1/2-1/2

[Event "*** Titled Tuesday Blitz"]
[Site "Chess.com"]
[Date "2020.02.04"]
[Round "5"]
[White "quesfr"]
[Black "Slovak_fighter2000"]
[Result "1-0"]
[WhiteElo "2072"]
[BlackElo "2499"]
[TimeControl "180+2"]
[EndTime "14:07:09 PST"]
[Termination "quesfr won by resignation"]

1. e4 {[%clk 0:03:01.9]} 1... g6 {[%clk 0:02:57.4]} 2. d4 {[%clk 0:03:02.3]}
2... Bg7 {[%clk 0:02:57.7]} 3. Nc3 {[%clk 0:03:03.8]} 3... a6 {[%clk 0:02:57.7]}
4. f4 {[%clk 0:03:04]} 4... d5 {[%clk 0:02:58]} 5. Nxd5 {[%clk 0:02:53.4]} 5...
f5 {[%clk 0:02:58]} 6. Bd3 {[%clk 0:02:39.4]} 6... fxe4 {[%clk 0:02:55.5]} 7.
Bxe4 {[%clk 0:02:40.5]} 7... c6 {[%clk 0:02:56.3]} 8. Nc3 {[%clk 0:02:35.8]}
8... Qxd4 {[%clk 0:02:55.9]} 9. Qxd4 {[%clk 0:02:33.5]} 9... Bxd4 {[%clk
0:02:57.8]} 10. Nge2 {[%clk 0:02:34.6]} 10... Bb6 {[%clk 0:02:55.5]} 11. Bf3
{[%clk 0:02:22.8]} 11... Nf6 {[%clk 0:02:55.7]} 12. Bd2 {[%clk 0:02:19.5]} 12...
Bf5 {[%clk 0:02:53.4]} 13. O-O-O {[%clk 0:02:17.6]} 13... Nbd7 {[%clk
0:02:52.5]} 14. Ng3 {[%clk 0:02:06.1]} 14... Be6 {[%clk 0:02:52.1]} 15. Rhe1
{[%clk 0:02:01.2]} 15... Kf7 {[%clk 0:02:38.9]} 16. Re2 {[%clk 0:01:47.4]} 16...
Rhe8 {[%clk 0:02:36.3]} 17. Rde1 {[%clk 0:01:48.3]} 17... Bg4 {[%clk 0:02:35.9]}
18. Bxg4 {[%clk 0:01:42.2]} 18... Nxg4 {[%clk 0:02:37.8]} 19. h3 {[%clk
0:01:43.6]} 19... Bf2 {[%clk 0:02:31.6]} 20. hxg4 {[%clk 0:01:38.1]} 20... Bxg3
{[%clk 0:02:32.3]} 21. Rh1 {[%clk 0:01:35.5]} 21... h5 {[%clk 0:02:21.7]} 22.
gxh5 {[%clk 0:01:33.1]} 22... gxh5 {[%clk 0:02:23.6]} 23. Rxh5 {[%clk
0:01:33.5]} 23... Nf6 {[%clk 0:02:24.5]} 24. Rh3 {[%clk 0:01:30.6]} 24... Rg8
{[%clk 0:02:23.5]} 25. Ne4 {[%clk 0:01:15.8]} 25... Nxe4 {[%clk 0:02:14.5]} 26.
Rxe4 {[%clk 0:01:16.8]} 26... Rae8 {[%clk 0:01:45.2]} 27. Re5 {[%clk 0:01:04.8]}
27... e6 {[%clk 0:01:40.9]} 28. Rh7+ {[%clk 0:01:01]} 28... Kf6 {[%clk
0:01:33.5]} 29. Rxb7 {[%clk 0:00:54.2]} 29... Bh2 {[%clk 0:01:33]} 30. Re2
{[%clk 0:00:46.2]} 30... Kf5 {[%clk 0:01:26.9]} 31. Rh7 {[%clk 0:00:43.1]} 31...
Bg3 {[%clk 0:01:22.1]} 32. Rf7+ {[%clk 0:00:41.2]} 32... Kg4 {[%clk 0:01:19.7]}
33. Re5 {[%clk 0:00:27.8]} 33... Rd8 {[%clk 0:01:06.5]} 34. Rxe6 {[%clk
0:00:21.4]} 34... Bh4 {[%clk 0:01:00.7]} 35. c3 {[%clk 0:00:19.2]} 35... Kg3
{[%clk 0:00:54.6]} 36. Re2 {[%clk 0:00:18.2]} 36... Rd6 {[%clk 0:00:46.8]} 37.
Rh7 {[%clk 0:00:18.2]} 37... Bf6 {[%clk 0:00:38.6]} 38. Kc2 {[%clk 0:00:17.3]}
38... Rgd8 {[%clk 0:00:34.9]} 39. Rf7 {[%clk 0:00:14.6]} 39... Kg4 {[%clk
0:00:34.3]} 40. Bc1 {[%clk 0:00:13]} 40... c5 {[%clk 0:00:34.2]} 41. Rd2 {[%clk
0:00:12.5]} 41... c4 {[%clk 0:00:31.3]} 42. Rxd6 {[%clk 0:00:12.7]} 42... Rxd6
{[%clk 0:00:33.2]} 43. b3 {[%clk 0:00:12.2]} 43... cxb3+ {[%clk 0:00:30.8]} 44.
axb3 {[%clk 0:00:14.1]} 44... Kf5 {[%clk 0:00:30.8]} 45. Be3 {[%clk 0:00:12.4]}
45... Ke4 {[%clk 0:00:31.6]} 46. Bd2 {[%clk 0:00:12]} 46... Rc6 {[%clk
0:00:31.4]} 47. Rf8 {[%clk 0:00:11.6]} 47... Bg7 {[%clk 0:00:27.4]} 48. Rg8
{[%clk 0:00:11.3]} 48... Bf6 {[%clk 0:00:27.8]} 49. g4 {[%clk 0:00:12.4]} 49...
Be7 {[%clk 0:00:24.1]} 50. Re8 {[%clk 0:00:12.1]} 50... Rc7 {[%clk 0:00:22.6]}
51. f5 {[%clk 0:00:12.1]} 51... Kd5 {[%clk 0:00:20.6]} 52. g5 {[%clk 0:00:12]}
52... Bd6 {[%clk 0:00:17.2]} 53. Rd8 {[%clk 0:00:10.9]} 53... Kc6 {[%clk
0:00:13.3]} 54. Rxd6+ {[%clk 0:00:10.9]} 54... Kxd6 {[%clk 0:00:14.7]} 55. Bf4+
{[%clk 0:00:11.9]} 1-0